{"text_format":"3","workbook":"xlsx","n_sheets":8,"sheets":["Titel","Start","Eingabe","Risiko 1 - Inflation","Risiko 2 - Emittent","Risiko 3 - EUR Kollaps","Zusammenfassung","Vorgaben"],"not_rendered":{"charts":4,"images":8,"macros":1,"defined_names":72},"read":"whole","date_system":"1900"}

{"sheet":"Titel","index":0,"n_rows":55,"n_cols":3,"rows_kept":55,"hidden":true,"merged":[[22,1,23,8],[50,2,50,6],[51,2,51,6],[52,2,52,6],[53,2,53,6],[54,2,54,6],[55,2,55,6],[56,2,56,6]]}
{"$rows_empty":22}
[null,"Die Top 3 Gefahren für Dein Geld"]
{"$rows_empty":27}
[null,null,"Schütze Dein Vermögen vor:"]
[]
[null,null,"Inflation"]
[null,null,"Bankpleiten"]
[null,null,"Euro-Kollaps"]

{"sheet":"Start","index":1,"n_rows":34,"n_cols":4,"rows_kept":34,"merged":[[0,2,1,9],[7,3,17,7],[33,3,68,7]]}
[null,null,"                   Die aktuell brisanten Top 3 Gefahren für Dein Geld"]
[]
[]
[]
[null,null,"Worum geht es?"]
[]
[]
[{"$nulls":3},"Sicherlich kennst Du die vielen aktuellen Gefahren für Dein Vermögen, wie z.B. hohe Inflation, niedrige Zinsen, schwächelnde Banken und Sorgen um die EURO-Stabilität. \n\nABER, kennst Du wirklich die Auswirkungen auf DEIN Vermögen?\n - Kennst Du wirklich die Auswirkungen auf Dein persönliches Vermögen?\n - Kannst Du wirklich schon abschätzen welche Risiken Dich persönlich am stärksten bedrohen?\n\nDas Ziel dieser Auswertung\nDiese Anlayse wird Dir dabei helfen in wenigen Minuten Deine persönlichen Risiken zu ermitteln.\nAm Ende sollst Du für Dich eine klare und konkrete Schätzung über Deine Vermögensrisiken in den Händen halten inkl. möglicher Lösungsvorschläge und Tipps, was Du konkret zum Schutz für Dich und Deine Familie tun kannst."]
{"$rows_empty":12}
[null,null,"Die Auswertung"]
{"$rows_empty":9}
[null,null,"Disclaimer"]
[]
[]
[{"$nulls":3},"Forex Freiheit GmbH, Starckstrasse 17, 90453 Nürnberg, Deutschland \n\nCopyright 2024\nAlle Rechte der deutschsprachigen Ausgabe bei Forex Freiheit GmbH. Nachdrucke und Veröffentlichungen, auch auszugsweise, sind nicht gestattet. Unsere Informationen sind ausschließlich für den eigenen Gebrauch bestimmt. \n\nRISIKOHINWEIS: \nDie Informationen basieren auf Quellen, die wir für zuverlässig halten. Die Angaben erfolgen nach sorgfältiger Prüfung, jedoch ohne Gewähr. Alle Meinungen, Nachrichten, Recherchen, Analysen, Kurse oder andere Informationen in dieser Publikation oder in anderen Materialien, die von Forex Freiheit GmbH, ihren verbundenen Unternehmen oder ihren Mitarbeitern zur Verfügung gestellt werden, sind als allgemeine Kommentare anzusehen und stellen keine Investmentberatung oder Aufforderung zum Kauf oder Verkauf von Devisen, CFDs, Kryptowährungen oder jeglichen anderen Wertpapieren dar. Ihre persönlichen Umstände werden dabei nicht berücksichtigt, handeln oder investieren Sie bitte nicht nur aufgrund dieser Informationen. Mit der Sichtung jeglicher Materialien, die von Forex Freiheit GmbH erstellt wurden oder der Nutzung jeglicher Informationen dieser Seite stimmen Sie zu, dass dies allgemeines Informationsmaterial darstellt, und dass Sie weder eine Person noch eine Unternehmung für Verluste verantwortlich machen, die durch die Inhalte oder allgemeine Information entstanden sind, die von Forex Freiheit GmbH, deren Mitarbeiter, Direktoren oder anderer Mitglieder bereitgestellt wurden. \nUm jeglichen Zweifel auszuräumen: Alle Materialien und Informationen, die von Forex Freiheit GmbH, den damit verbundenen Unternehmen und Mitarbeitern zur Verfügung gestellt werden, sind als für Informations- und Bildungszwecke konzipiert anzusehen und dürfen nicht als individuelle Investment Beratung angesehen werden. \nObwohl alle Bemühungen unternommen werden, die Richtigkeit der in dieser Publikation enthaltenen Informationen zu überprüfen, kann Forex Freiheit GmbH keine Verantwortung für jegliche Fehler oder fehlende Informationen übernehmen. Daher empfehlen wir den Lesern dringend, selbst gründliche Überprüfungen durchzuführen und unabhängige Finanzberatung einzuholen, bevor jegliche Art von Transaktion oder Vermögensumschichtungen durchgeführt wird. \n\nDISCLAIMER: \nMicrosoft Excel ist ein Produkt der Firma Microsoft. Wir stehen in keinerlei rechtlicher Beziehung zu Microsoft und handeln auch nicht in Microsofts Namen.\nSämtliche Kalkulationstools wurden mit größter Sorgfalt erstellt. Wir haben durch mehrfache Überprüfungen bestmöglich versucht, Berechnungsfehler auszuschließen. Trotzdem können Fehler nicht vollständig ausgeschlossen werden. Daher können wir keine juristische Verantwortung und keinerlei Haftung für eventuell verbliebene Fehler und deren Folgen übernehmen. Um etwaige Fehler so weit wie möglich auszuschließen, empfehlen wir dringend und in jedem Fall eigenständige Kontrollrechnungen durchzuführen und ggf. zusätzlichen Rat eines Rechts-, Steuer- oder Finanzberaters einzuholen.\nWir machen Sie vorsorglich darauf aufmerksam, dass die in dieser Publikation enthaltenen Finanzanalysen und Empfehlungen zu einzelnen Anlageklassen eine individuelle Anlageberatung durch Ihren Anlageberater oder Vermögensberater nicht ersetzen können. Unsere Analysen und Empfehlungen richten sich an alle unsere Kunden und Interessenten von Forex Freiheit GmbH, die in ihrem Anlageverhalten und ihren Anlagezielen sehr unterschiedlich sind. Daher berücksichtigen die Analysen und Empfehlungen dieses Programms in keiner Weise Ihre persönliche Anlagesituation. Bitte haben Sie Verständnis dafür, dass diese Datei nur von der Person gelesen und genutzt werden darf, die im direkten Kontakt zu Forex Freiheit GmbH steht. Diese Datei elektronisch oder gedruckt ganz oder teilweise weiterzuleiten, zu verbreiten, Dritten zugänglich zu machen, zu vervielfältigen, zu bearbeiten oder zu übersetzen, ist nur mit vorheriger schriftlicher Genehmigung der Forex Freiheit GmbH gestattet. \n\nCOMPLIANCE HINWEIS: \nWir weisen Sie vorsorglich darauf hin, dass wir derzeit selbst entsprechende Geschäfte in den vorgestellten Anlageklassen eingehen. \n"]

{"sheet":"Eingabe","index":2,"n_rows":69,"n_cols":9,"rows_kept":69,"merged":[[0,2,1,9],[7,3,11,6]]}
[null,null,"                   Die aktuell brisanten Top 3 Gefahren für Dein Geld"]
[]
[]
[]
[null,null,"Deine Vermögensaufstellung"]
[]
[]
[{"$nulls":3},"In dieser Tabelle kannst Du Deine Vermögenswerte eintragen. \nEs ist uns wichtig zu erwähnen, dass Deine persönlichen Daten in dieser Datei nur auf Deinem Rechner verbleiben.\n\nSobald Du diese Tabelle ausgefüllt hast, kannst Du Dir die Auswertungen zu den einzelnen Risiken ansehen. \nIm Reiter Start hast Du die Möglichkeit Dir die Anlayse als PDF-Datei anzeigen zu lassen."]
{"$rows_empty":7}
[{"$nulls":3},"Bezeichnung (z.B. Bankname)","Anlageklasse","Währung","Gegenwert in EUR","Formatiert","Absolut"]
[]
[{"$nulls":7},{"$f":"IF(OR(E18=\"Kredite-Konsum\",E18=\"Kredite-Immobilien\"),ABS(G18)*-1,ABS(G18))","v":0},{"$f":"ABS(G18)","v":0}]
[{"$nulls":7},{"$f":"IF(OR(E19=\"Kredite-Konsum\",E19=\"Kredite-Immobilien\"),ABS(G19)*-1,ABS(G19))","v":0},{"$f":"ABS(G19)","v":0}]
[{"$nulls":7},0,0]
[{"$nulls":7},0,0]
[{"$nulls":7},0,0]
[{"$nulls":7},0,0]
[{"$nulls":7},0,0]
[{"$nulls":7},0,0]
[{"$nulls":7},0,0]
[{"$nulls":7},0,0]
[{"$nulls":7},0,0]
[{"$nulls":7},0,0]
[{"$nulls":7},0,0]
[{"$nulls":7},0,0]
[{"$nulls":7},0,0]
[{"$nulls":7},0,0]
[{"$nulls":7},0,0]
[{"$nulls":7},0,0]
[{"$nulls":7},0,0]
[{"$nulls":7},0,0]
[{"$nulls":7},0,0]
[{"$nulls":7},0,0]
[{"$nulls":7},0,0]
[{"$nulls":7},0,0]
[{"$nulls":7},0,0]
[{"$nulls":7},0,0]
[{"$nulls":7},0,0]
[{"$nulls":7},0,0]
[{"$nulls":7},0,0]
[{"$nulls":7},0,0]
[{"$nulls":7},0,0]
[{"$nulls":7},0,0]
[{"$nulls":7},0,0]
[{"$nulls":7},0,0]
[{"$nulls":7},0,0]
[{"$nulls":7},0,0]
[{"$nulls":7},0,0]
[{"$nulls":7},0,0]
[{"$nulls":7},0,0]
[{"$nulls":7},0,0]
[{"$nulls":7},0,0]
[{"$nulls":7},0,0]
[{"$nulls":7},0,0]
[{"$nulls":7},0,0]
[{"$nulls":7},0,0]
[{"$nulls":7},0,0]
[{"$nulls":7},0,0]
[{"$nulls":7},0,0]
[{"$nulls":7},0,0]
[{"$nulls":7},0,0]
[{"$nulls":7},{"$f":"IF(OR(E68=\"Kredite-Konsum\",E68=\"Kredite-Immobilien\"),ABS(G68)*-1,ABS(G68))","v":0}]
[{"$nulls":3},"Reinvermögen",null,null,{"$f":"H69","v":0},{"$f":"SUM(H18:H67)","v":0},0]

{"sheet":"Risiko 1 - Inflation","index":3,"n_rows":56,"n_cols":26,"rows_kept":56,"merged":[[0,1,1,15],[4,1,4,15],[7,2,9,14],[13,1,13,9],[13,11,13,15],[16,24,16,25],[27,2,27,6],[28,2,28,6],[32,2,49,14],[52,1,52,15],[55,2,60,14]]}
[null,"                   Die aktuell brisanten Top 3 Gefahren für Dein Geld"]
[]
[]
[]
[null,"Risiko 1:  Das Inflations-Risiko"]
[]
[]
[null,null,"In einem Szenario hoher Inflation werden Teile Deines Kapitals an Kaufkraft verlieren. \n\nWir unterstellen, dass sich die Kaufkraft des Geldes in den nächsten 10 Jahren halbiert. \nEin Rückgang Deiner gesamten Kaufkraft von mehr als 33% erachten wir als extrem kritisch."]
[]
[]
[]
[]
[]
[null,"Dein Inflationsrisiko",{"$nulls":9},"Deine Anlageklassen"]
[]
[]
[{"$nulls":12},"Anlageklassen","IST-Betrag","Kalk-Risiko",{"$nulls":9},"Tachonadel"]
[{"$nulls":12},"Bargeld",{"$f":"SUMIF(Eingabe!E:E,M18,Eingabe!H:H)","v":0},{"$f":"N18*-0.5","v":0},{"$nulls":9},"Min","Max"]
[{"$nulls":12},"Bankguthaben & Anleihen",{"$f":"SUMIF(Eingabe!E:E,M19,Eingabe!H:H)","v":0},{"$f":"N19*-0.5","v":0},{"$nulls":9},{"v":0,"d":"0%"},{"v":0.33,"d":"33%"}]
[{"$nulls":12},"LV / RV (nicht fondsbasiert)",{"$f":"SUMIF(Eingabe!E:E,M20,Eingabe!H:H)","v":0},{"$f":"N20*-0.5","v":0},{"$nulls":9},"Wert",{"$f":"IF(Z26>=Z19,Z19-0.01,IF(Z26<=Y19+0.01,Y19+0.01,Z26))","v":{"v":0.32,"d":"32%"}}]
[{"$nulls":12},"LV / RV (fondsbasiert)",{"$f":"SUMIF(Eingabe!E:E,M21,Eingabe!H:H)","v":0}]
[{"$nulls":12},"Kredite-Konsum",{"$f":"SUMIF(Eingabe!E:E,M22,Eingabe!H:H)","v":0},{"$nulls":10},"Nadelstand",{"$f":"1.8*(Z20/Z19)","v":{"v":1.7454545454545456,"d":"175%"}}]
[{"$nulls":12},"Kredite-Immobilien",{"$f":"SUMIF(Eingabe!E:E,M23,Eingabe!H:H)","v":0},{"$nulls":10},"Nadeldicke",{"v":0.005,"d":"1%"}]
[{"$nulls":12},"Immobilien",{"$f":"SUMIF(Eingabe!E:E,M24,Eingabe!H:H)","v":0},{"$nulls":10},"Leer",{"v":1.8,"d":"180%"}]
[{"$nulls":12},"Depotwerte (Aktien & Fonds)",{"$f":"SUMIF(Eingabe!E:E,M25,Eingabe!H:H)","v":0}]
[{"$nulls":12},"Edelmetalle",{"$f":"SUMIF(Eingabe!E:E,M26,Eingabe!H:H)","v":0},{"$nulls":10},"Absolut",{"$f":"I28","v":""}]
[{"$nulls":12},"Kryptos",{"$f":"SUMIF(Eingabe!E:E,M27,Eingabe!H:H)","v":0}]
[null,null,"Dein Inflationsverlustrisiko für 10 Jahre für Dein Gesamtvermögen beträgt",{"$nulls":5},{"$f":"IF(SUM(N18:N28)=0,\"\",ABS(SUM(O18:O20)/SUM(N18:N28)))","v":""}]
[]
[]
[]
[]
[null,null,"Die Inflationsgefahren sind allgegenwärtig. In der EU ist die Inflationsrate auf über 5,0% (Dezember 2021) gestiegen. In Deutschland liegt der Wert im November 2021 bei 5,2% und in den USA liegt die Inflationsrate sogar bei 6,2%. So hoch wie seit 30 Jahren nicht mehr!\n\nBei einem Vermögen von EUR 500.000 verzehrt die Inflation somit ca. 5,2% = EUR 26.000 pro Jahr!\n\nGerade Bargeld, Bankguthaben, aber auch der persönliche Konsum und somit auch die Konsumschulden sind direkt davon betroffen.\n\nDie anderen Anlageklassen können den inflationären Werteverfall meist auch nur bedingt ausgleichen. Hier werden die Schutzmöglichkeiten teilweise überschätzt.\n\nAuch Aktien haben in Phasen starker Inflation gelitten. Insbesondere in der Phase der Stagflation in den 1970ern konnten US-Aktien die Inflation aufgrund der geringen wirtschaftlichen Dynamik nicht ausgleichen. Eine reine Buy&Hold-Aktienanlage hätte enorme Verluste gebracht. Auch hier ist das aktive Handeln gefragt.  \n\nWie entfliehst Du der Inflation?"]
{"$rows_empty":19}
[null,"Lösungsvorschlag"]
[]
[]
[null,null,"Einer hohen Inflation kann man nur mit ausreichend hohen Kapitalerträgen entgegen wirken. \n\nUnseren Kunden geben wir konkrete Tipps und Strategien mit denen dies möglich ist."]

{"sheet":"Risiko 2 - Emittent","index":4,"n_rows":67,"n_cols":30,"rows_kept":67,"merged":[[0,1,1,14],[4,1,4,14],[7,2,9,13],[13,1,13,9],[13,11,13,14],[16,25,16,26],[27,2,27,6],[28,2,28,6],[32,2,45,13],[52,1,52,14],[55,2,60,13]]}
[null,"                   Die aktuell brisanten Top 3 Gefahren für Dein Geld"]
[]
[]
[]
[null,"Risiko 2: Das Anlagerückzahlungs-Risiko (Risk of Return of Invested Capital)"]
[]
[]
[null,null,"Das Anlagerückzahlungs-Risiko gibt an, wie sehr Du von einer einzelnen Bank oder Kapitalanlagestelle abhängig bist.\n\nIm Falle einer Insolvenz der Bank sollte maximal 10% Deines Vermögens betroffen sein. \nEin Anteil von mehr als 25% bei einer Bank bzw. Kapitalanlagestelle halten wir für sehr kritisch."]
[]
[]
[]
[]
[]
[null,"Dein Anlagerückzahlungs-Risiko (Emittentenrisiko)",{"$nulls":9},"Deine Top 10 - Anlagestellen"]
[]
[]
[{"$nulls":25},"Tachonadel",null,null,"Emittent","Abs-Value"]
[{"$nulls":12},"Emittent","EUR-Gegenwert absolut",{"$nulls":11},"Min","Max",null,null,0]
[{"$nulls":25},{"v":0,"d":"0%"},{"v":0.25,"d":"25%"},null,null,0]
[{"$nulls":25},"Wert",{"$f":"IF(AA26>=AA19,AA19-0.01,IF(AA26<=Z19+0.01,Z19+0.01,AA26))","v":{"$error":"#DIV/0!"}},null,null,0]
[{"$nulls":29},0]
[{"$nulls":25},"Nadelstand",{"$f":"1.8*(AA20/AA19)","v":{"$error":"#DIV/0!"}},null,null,0]
[{"$nulls":25},"Nadeldicke",{"v":0.005,"d":"1%"},null,null,0]
[{"$nulls":25},"Leer",{"v":1.8,"d":"180%"},null,null,0]
[{"$nulls":29},0]
[{"$nulls":25},"Risiko",{"$f":"AA27/AA28","v":{"$error":"#DIV/0!"}},null,null,0]
[{"$nulls":25},"Max",{"$f":"ABS(MAX(AD18:AD70))","v":0},null,null,0]
[null,null,"Dein größtes Einzelrisiko beträgt",{"$nulls":5},{"$f":"ABS(AA26)","v":{"$error":"#DIV/0!"}},{"$nulls":16},"Absolute Gesamtvermögen",{"$f":"SUM(Eingabe!I18:I67)","v":0},null,null,0]
[{"$nulls":29},0]
[{"$nulls":29},0]
[{"$nulls":29},0]
[{"$nulls":29},0]
[null,null,"Weithin herrscht die Ansicht, dass die Guthaben bei der Hausbank in der Europäischen Union (EU) mit EUR 100.000 durch den Einlagensicherungsfonds gedeckt sind.\nDies sehen wir nicht als gesichert an, da zum Beipiel der deutsche Einlagensicherungsfonds nicht vollumfänglich rückgedeckt und entsprechend mit Kapital ausgestattet ist. Siehe auch Zitat auf der Homepage des Einlagensicherungsfonds: \"Die Zielausstattung des Einlagensicherungsfonds ist angelehnt an die der gesetzlichen Einlagensicherung und auf 0,8% der gedeckten Einlagen festgelegt. Dieser Wert soll bis 2024 erreicht sein.\" \n\nDie meisten Banken haben eine sehr unzureichende Eigenkapitalbasis. Die ersten Bankenpleiten, wie die Greensill Bank in Bremen, sind in 2021 bereits erfolgt. Und die deutsche Finanzaufsichtsbehörde Bundesanstalt für Finanzdienstleistungsaufsicht (BaFin) erwartet für die kommenden Jahre weitere Bankenpleiten. \n\nWie bist Du vor Bankpleiten geschützt?",{"$nulls":26},0]
[{"$nulls":29},0]
[{"$nulls":29},0]
[{"$nulls":29},0]
[{"$nulls":29},0]
[{"$nulls":29},0]
[{"$nulls":29},0]
[{"$nulls":29},0]
[{"$nulls":29},0]
[{"$nulls":29},0]
[{"$nulls":29},0]
[{"$nulls":29},0]
[{"$nulls":29},0]
[{"$nulls":29},0]
[{"$nulls":29},0]
[null,null,"Quellen:",{"$nulls":26},0]
[null,null,"https://einlagensicherungsfonds.de/faq/",{"$nulls":26},0]
[null,null,"https://www.capital.de/wirtschaft-politik/bafin-befuerchtet-bankenpleiten",{"$nulls":26},0]
[{"$nulls":29},0]
[{"$nulls":29},0]
[null,"Lösungsvorschlag",{"$nulls":27},0]
[{"$nulls":29},0]
[{"$nulls":29},0]
[null,null,"Wir empfehlen die Verteilung des Kapitals auf verschiedene Kapitalanlagestellen mit solider Eigenkapitalbasis und unterschiedliche Anlageklassen. \n\nUnseren Kunden geben wir konkrete Tipps zur Auswahl.",{"$nulls":26},0]
[{"$nulls":29},0]
[{"$nulls":29},0]
[{"$nulls":29},0]
[{"$nulls":29},0]
[{"$nulls":29},0]
[{"$nulls":29},0]
[{"$nulls":29},0]
[{"$nulls":29},0]
[{"$nulls":29},0]
[{"$nulls":29},0]
[{"$nulls":29},0]

{"sheet":"Risiko 3 - EUR Kollaps","index":5,"n_rows":56,"n_cols":27,"rows_kept":56,"merged":[[0,1,1,15],[4,1,4,15],[7,2,9,14],[13,1,13,9],[13,11,13,15],[16,25,16,26],[27,2,27,6],[28,2,28,6],[32,2,49,14],[52,1,52,15],[55,2,60,14]]}
[null,"                   Die aktuell brisanten Top 3 Gefahren für Dein Geld"]
[]
[]
[]
[null,"Risiko 3: Der Euro-Kollaps"]
[]
[]
[null,null,"Sollte der Euro aufgrund der enormen Verschuldung seiner Mitgliedstaaten im Ansehen verlieren, wird der Außenwert des Euros stark fallen. Bei den verbundenen Währungen, wie Schweizer Franken (CHF) und Dänische Krone (DKK) werden die Notenbanken gezwungen sein Euro zu kaufen, damit ihre eigene Währung nicht zu sehr gegen den Euro aufwertet. Das wiederum führt zu einer Schwächungen der Notenbankbilanzen. Wir unterstellen in diesem Szenario einen Verlust des Euro von 50%. Das wiederum sollte max. zu einem Risiko von 30% bezogen auf Dein Kapital führen."]
[]
[]
[]
[]
[]
[null,"Dein direktes EURO-Kollaps-Risiko",{"$nulls":9},"Deine EURO-abhängigen Währungen"]
[]
[]
[{"$nulls":25},"Tachonadel"]
[{"$nulls":12},"Währung",null,"EUR-Gegenwert",{"$nulls":10},"Min","Max"]
[{"$nulls":12},"EUR",null,{"$f":"SUMIF(Eingabe!F:F,M19,Eingabe!I:I)","v":0},{"$nulls":10},{"v":0,"d":"0%"},{"v":0.3,"d":"30%"}]
[{"$nulls":12},"EUR-Koppleung (CHF, DKK)",null,{"$f":"SUMIF(Eingabe!F:F,\"CHF\",Eingabe!I:I)+SUMIF(Eingabe!F:F,\"DKK\",Eingabe!I:I)","v":0},{"$nulls":10},"Wert",{"$f":"IF(AA26>=AA19,AA19-0.01,IF(AA26<=Z19+0.01,Z19+0.01,AA26))","v":{"$error":"#DIV/0!"}}]
[{"$nulls":12},"Risiko bei EUR-Kollaps",null,{"$f":"(O19+O20)*-0.5","v":0}]
[{"$nulls":25},"Nadelstand",{"$f":"1.8*(AA20/AA19)","v":{"$error":"#DIV/0!"}}]
[{"$nulls":25},"Nadeldicke",{"v":0.005,"d":"1%"}]
[{"$nulls":25},"Leer",{"v":1.8,"d":"180%"}]
[]
[{"$nulls":25},"Absolut",{"$f":"ABS(O21)/AA27","v":{"$error":"#DIV/0!"}}]
[{"$nulls":25},"Gesamtvermögen",{"$f":"SUM(Eingabe!I17:I68)","v":0}]
[null,null,"Dein Euro-Kollaps-Risiko beträgt:",{"$nulls":5},{"$f":"AA26","v":{"$error":"#DIV/0!"}}]
[]
[]
[]
[]
[null,null,"Der Werteverfall des Euro ist wohl mit eines der wichtigsten Risiken. \n\nIm Grunde hat dieser Verfall bereits begonnen. Das kann man zum Beispiel gut an den gestiegen Gold- und Silberpreisen ablesen. Aber auch gegenüber anderen Währungen verliert der Euro immer deutlicher an Wert.\n\nDie Europäische Zentralbank (EZB) wird diesen Verfall auch nicht gezielt stoppen. Die EU ist eher eine exportgetriebene Wirtschaft, allen voran Deutschland. Hier ist ein günstiger Euro ein klarer Wettbewerbsvorteil für Industriezweige, wie z.B. die Automobilindustrie.\n\nFatal ist jedoch, dass wir als Konsumenten eher Waren importieren, wie z.B. Kleidung, Nahrungsmittel, Elektronik. Ein fallender Euro stärkt unsere Wirtschaft, schwächt jedoch gleichzeitig unsere Kaufkraft.\n\nVor diesem Szenario kann man sich nur durch eine gezielte Streuung seines Kapitals über mehrere Währungen hinweg schützen. \n\nBei den Währungen gibt es aber auch Gewinner und Verlierer. \n\n\nMit welchen Währungen schützt Du Dich vor einem schwachen oder kollabierenden Eurowert?\n\n"]
{"$rows_empty":19}
[null,"Lösungsvorschlag"]
[]
[]
[null,null,"Eine breite Streuung über diverse Währungen und verschiedene Anlagevehikel halten wir für angebracht. Auch das aktive Handeln und gewinnbringende Ausnutzen von Währungskursschwankungen ist in unseren Augen ein probates Mittel, um sich vor dem Wertverfall des Euro zu schützen. Zu zentralbankabhängigen und zentralbankunabhängigen Währungen bieten wir in unserer Akademie wertvolle Informationen und Schulungen an."]

{"sheet":"Zusammenfassung","index":6,"n_rows":46,"n_cols":26,"rows_kept":46,"merged":[[0,1,1,15],[4,1,4,15],[7,2,9,14],[13,1,13,15],[15,1,15,9],[16,1,16,9],[17,1,17,9],[19,11,19,15],[20,11,20,15],[22,2,39,14],[42,1,42,15],[45,11,47,14]]}
[null,"                   Die aktuell brisanten Top 3 Gefahren für Dein Geld"]
[]
[]
[]
[null,"Zusammenfassung Vermögensvernichtungspotenzial"]
[]
[]
[null,null,"Du siehst welch vielfältigen Risiken Dein Vermögen ausgesetzt ist. \nDiese kurze Analyse konnte Dir hoffentlich aufzeigen, wie hoch Deine persönlichen Verluste sein können und wie Du Dich davor schützen kannst.\n\nNachfolgend haben wir Deine persönlichen Risiken nochmals grafisch dargestellt, damit Du diese gezielt angehen kannst. "]
[]
[]
[]
[{"$nulls":23},"Risiko 3:","Risiko 2:","Risiko 1:"]
[{"$nulls":23},{"$f":"'Risiko 3 - EUR Kollaps'!AA20/'Risiko 3 - EUR Kollaps'!AA19","v":{"$error":"#DIV/0!"}},{"$f":"'Risiko 2 - Emittent'!AA20/'Risiko 2 - Emittent'!AA19","v":{"$error":"#DIV/0!"}},{"$f":"'Risiko 1 - Inflation'!Z20/'Risiko 1 - Inflation'!Z19","v":{"v":0.9696969696969697,"d":"97%"}}]
[null,"Deine Risiken im Überblick",{"$nulls":21},{"v":0.02,"d":"2%"},{"v":0.02,"d":"2%"},{"v":0.02,"d":"2%"}]
[]
[null,"Risiko 1: Dein Inflations-Risiko"]
[null,"Risiko 2: Dein Emittenten-Risiko"]
[null,"Risiko 3: Dein Euro-Kollaps-Risiko"]
[]
[]
[]
[]
[null,null,"Die obigen 3 Risiken sind nur ein Auszug aus den insgesamt 30 Risiken, die wir für Dein Kapital ermitteln können.\n\nIm Rahmen unserer Geldwertschutz-Analyse zeigen wir Dir Deine Risiken klar auf und geben Dir auch klare Handlungsempfehlungen, wie Du Dich vor diesen Risiken schützen kannst. \n\nWir bieten unseren Kunden ein umfangreiches Repertoire an durchdachten und vor allem umsetzbaren Lösungen für diese Risiken an. Unser Schwerpunkt liegt dabei im Bereich der Geldwerte und anderer gut handelbarer Vermögenswerte. Darüber hinaus bieten wir aber auch ein Vielzahl weiterer Lösungen und Hilfestellungen.\n\nUnser Ziel ist es anderen Menschen bei der komplexen Aufgabe des Vermögensschutzes und dem Vermögensausbau zu helfen.\n\nMöchtest Du Dein Vermögen vor den 30 Risiken beschützen?\n\nDann nimm unbedingt an unserem kostenfreien Online-Training teil.  Über diesen Link kannst Du Dich direkt anmelden:\n\n"]
{"$rows_empty":19}
[null,"Hier kannst Du uns erreichen:"]
[]
[]
[{"$nulls":11},"Forex Freiheit GmbH\n\nInternet:    www.forexfreiheit.de\nMail:           support@forexfreiheit.de"]

{"sheet":"Vorgaben","index":7,"n_rows":29,"n_cols":5,"rows_kept":29}
[]
[]
[]
[null,null,"Anlageklassen",null,"Währung"]
[]
[null,null,"Bankguthaben & Anleihen",null,"EUR"]
[null,null,"Bargeld"]
[null,null,"Depotwerte (Aktien & Fonds)",null,"AUD"]
[null,null,"Edelmetalle",null,"CAD"]
[null,null,"Immobilien",null,"CHF"]
[null,null,"Kredite-Immobilien",null,"DKK"]
[null,null,"Kredite-Konsum",null,"GBP"]
[null,null,"Kryptos",null,"HKD"]
[null,null,"LV / RV (fondsbasiert)",null,"JPY"]
[null,null,"LV / RV (nicht fondsbasiert)",null,"MXN"]
[{"$nulls":4},"NOK"]
[{"$nulls":4},"NZD"]
[{"$nulls":4},"RUB"]
[{"$nulls":4},"SEK"]
[{"$nulls":4},"SGD"]
[{"$nulls":4},"TRY"]
[{"$nulls":4},"USD"]
[{"$nulls":4},"ZAR"]
[{"$nulls":4},"----"]
[{"$nulls":4},"Gold"]
[{"$nulls":4},"Silber"]
[{"$nulls":4},"----"]
[{"$nulls":4},"BTC"]
[{"$nulls":4},"ETH"]